Workbook

Sheet Verif Random Plan
B1: Clicking "Enable Content" allows the random number generator macro to run when you enter <Ctlr> + the "w" key. You may choose to disable this, then enter your own random numbers.
F2: Caltrans Stratified Random Sampling Plan | J2: Revision: | K2: 04/22/2020
F3: For verification sampling on projects using Statistical Pay Factor Specifications
G4: Contract Number:
G5: Contractor:
A6: This plan covers verification of the following Pay Factor Quality Characteristics: | G6: HMA Producer:
G7: JMF Number:
G8: HMA Plant:
G9: Lot Number: | H9: 1
G10: HMA Type:
E12: See "Instructions". | G12: Min Verification Tests Needed. Except always use 3 for Air Voids. | H12: Quantity / minimum number of required verification samples (tons)
D13: Contractor's Planned Final Lot Quantity: | E13: 15000 | F13: tons | G13: =MAX(3,(ROUNDUP(contractorq/3750,0))) -> 4 | H13: =ROUND(contractorq/G13,0) -> 3750 | I13: tons
D14: Potential Lot Termination at: | E14: 11000 | F14: tons | G14: =MAX(3,(ROUNDUP(potlq/3750,0))) -> 3 | H14: =ROUND(potlq/G14,0) -> 3667 | I14: tons
G15: Lowest of above two values: | H15: =MIN(H13:H14) -> 3667 | I15: tons
C16: Recommended Stratified Quantity: | D16: =ROUND((contractorq/recommendedq),0)&" each" -> 5 each | E16: ="parts of" -> parts of | F16: =recommendedq&" tons" -> 3000 tons | G16: per stratified quantity for a total of | I16: =ROUND((contractorq/recommendedq),0)*recommendedq -> 15000 | J16: ± tons in the lot
G17: Enter Stratified Quantity to be used in stratified random sampling plan below: | H17: 3000 | I17: tons
R19: =LARGE(R22:R39,COUNTIF(R22:R39,">"&H15)+1) -> 3000
T20: The info below used to build the text in Col G
A21: Lot Number | B21: Verification test number | C21: Beginning Ton in Stratified Portion | D21: Ending Ton in Stratified Portion | E21: Random Numbers Press <Ctrl> + w to generate new set | F21: Verification Milestone Tonnage | G21: Approx. location of engineer's stratified random sample milestone referenced to the contractor sublot. | H21: Engineers Estimated Sampling date / time (see Note 1) | Q21: number of samples | R21: Stratified Quantity options if completing at Contractors Q | S21: Random Numbers Equation used to generate a value to 4 decimal pts between 0 and 1. This changes after every cell entry, but the values in column E do not, becuase the macro takes these values, and pastest only the value below, not the equation into column E. After it does that , these values below change again, but not in column E. At least not until the macro is run again. | T21: Random Number from Column E after pasting values used to values into column E when macro runs. | U21: Verification Milestone, from column F | V21: Equiv Contractor sublot No. Column U / 750 | W21: Integer, the sublot before the referenced sublot in Column G | X21: Fraction | Y21: tons into lot
A22: =lotno -> 1 | B22: 1 | C22: 0 | D22: =MIN(contractorq,(C22+stratq)) -> 3000 | E22: 0.3999 | F22: =ROUND(C22+((D22-C22)*E22),0) -> 1200 | G22: =Y22&" tons into sublot "&(W22+1) -> 450 tons into sublot 2 | Q22: 3 | R22: =ROUND(contractorq/Q22,2) -> 5000 | S22: =ROUND(RAND(),4) -> 0.649 | T22: =E22 -> 0.3999 | U22: =F22 -> 1200 | V22: =U22/750 -> 1.6 | W22: =INT(V22) -> 1 | X22: =V22-W22 -> 0.6 | Y22: =ROUND(X22*750,0) -> 450
A23: 1 | B23: 2 | C23: =D22 -> 3000 | D23: 6000 | E23: 0.605 | F23: =ROUND(C23+((D23-C23)*E23),0) -> 4815 | G23: =Y23&" tons into sublot "&(W23+1) -> 315 tons into sublot 7 | Q23: 4 | R23: 3750 | S23: =ROUND(RAND(),4) -> 0.2149 | T23: =E23 -> 0.605 | U23: =F23 -> 4815 | V23: =U23/750 -> 6.42 | W23: =INT(V23) -> 6 | X23: =V23-W23 -> 0.42 | Y23: =ROUND(X23*750,0) -> 315
A24: 1 | B24: 3 | C24: =D23 -> 6000 | D24: 9000 | E24: 0.4367 | F24: 7310 | G24: 560 tons into sublot 10 | Q24: 5 | R24: 3000 | S24: 0.423 | T24: 0.4367 | U24: 7310 | V24: 9.746666667 | W24: 9 | X24: 0.7466666667 | Y24: 560
A25: 1 | B25: 4 | C25: 9000 | D25: 12000 | E25: 0.2692 | F25: 9808 | G25: 58 tons into sublot 14 | Q25: 6 | R25: 2500 | S25: 0.4206 | T25: 0.2692 | U25: 9808 | V25: 13.07733333 | W25: 13 | X25: 0.07733333333 | Y25: 58
A26: 1 | B26: 5 | C26: 12000 | D26: 15000 | E26: 0.922 | F26: 14766 | G26: 516 tons into sublot 20 | Q26: 7 | R26: 2142.86 | S26: 0.842 | T26: 0.922 | U26: 14766 | V26: 19.688 | W26: 19 | X26: 0.688 | Y26: 516
A27: 1 | B27: 6 | C27: 15000 | D27: 15000 | E27: 0.0323 | F27: 15000 | G27: 0 tons into sublot 21 | Q27: 8 | R27: 1875 | S27: 0.7287 | T27: 0.0323 | U27: 15000 | V27: 20 | W27: 20 | X27: 0 | Y27: 0
A28: 1 | B28: 7 | C28: 15000 | D28: 15000 | E28: 0.0525 | F28: 15000 | G28: 0 tons into sublot 21 | Q28: 9 | R28: 1666.67 | S28: 0.3227 | T28: 0.0525 | U28: 15000 | V28: 20 | W28: 20 | X28: 0 | Y28: 0
A29: 1 | B29: 8 | C29: 15000 | D29: 15000 | E29: 0.0875 | F29: 15000 | G29: 0 tons into sublot 21 | Q29: 10 | R29: 1500 | S29: 0.6488 | T29: 0.0875 | U29: 15000 | V29: 20 | W29: 20 | X29: 0 | Y29: 0
A30: 1 | B30: 9 | C30: 15000 | D30: 15000 | E30: 0.192 | F30: 15000 | G30: 0 tons into sublot 21 | Q30: 11 | R30: 1363.64 | S30: 0.2527 | T30: 0.192 | U30: 15000 | V30: 20 | W30: 20 | X30: 0 | Y30: 0
A31: 1 | B31: 10 | C31: 15000 | D31: 15000 | E31: 0.3045 | F31: 15000 | G31: 0 tons into sublot 21 | Q31: 12 | R31: 1250 | S31: 0.3736 | T31: 0.3045 | U31: 15000 | V31: 20 | W31: 20 | X31: 0 | Y31: 0
A32: 1 | B32: 11 | C32: 15000 | D32: 15000 | E32: 0.1001 | F32: 15000 | G32: 0 tons into sublot 21 | Q32: 13 | R32: 1153.85 | S32: 0.7776 | T32: 0.1001 | U32: 15000 | V32: 20 | W32: 20 | X32: 0 | Y32: 0
A33: 1 | B33: 12 | C33: 15000 | D33: 15000 | E33: 0.1663 | F33: 15000 | G33: 0 tons into sublot 21 | Q33: 14 | R33: 1071.43 | S33: 0.8001 | T33: 0.1663 | U33: 15000 | V33: 20 | W33: 20 | X33: 0 | Y33: 0
A34: 1 | B34: 13 | C34: 15000 | D34: 15000 | E34: 0.7742 | F34: 15000 | G34: 0 tons into sublot 21 | Q34: 15 | R34: 1000 | S34: 0.0886 | T34: 0.7742 | U34: 15000 | V34: 20 | W34: 20 | X34: 0 | Y34: 0
A35: 1 | B35: 14 | C35: 15000 | D35: 15000 | E35: 0.9901 | F35: 15000 | G35: 0 tons into sublot 21 | Q35: 16 | R35: 937.5 | S35: 0.9252 | T35: 0.9901 | U35: 15000 | V35: 20 | W35: 20 | X35: 0 | Y35: 0
A36: 1 | B36: 15 | C36: 15000 | D36: 15000 | E36: 0.6994 | F36: 15000 | G36: 0 tons into sublot 21 | Q36: 17 | R36: 882.35 | S36: 0.5337 | T36: 0.6994 | U36: 15000 | V36: 20 | W36: 20 | X36: 0 | Y36: 0
A37: 1 | B37: 16 | C37: 15000 | D37: 15000 | E37: 0.6798 | F37: 15000 | G37: 0 tons into sublot 21 | Q37: 18 | R37: 833.33 | S37: 0.5935 | T37: 0.6798 | U37: 15000 | V37: 20 | W37: 20 | X37: 0 | Y37: 0
A38: 1 | B38: 17 | C38: 15000 | D38: 15000 | E38: 0.7758 | F38: 15000 | G38: 0 tons into sublot 21 | Q38: 19 | R38: 789.47 | S38: 0.8065 | T38: 0.7758 | U38: 15000 | V38: 20 | W38: 20 | X38: 0 | Y38: 0
A39: 1 | B39: 18 | C39: 15000 | D39: 15000 | E39: 0.8607 | F39: 15000 | G39: 0 tons into sublot 21 | Q39: 20 | R39: 750 | S39: 0.3368 | T39: 0.8607 | U39: 15000 | V39: 20 | W39: 20 | X39: 0 | Y39: 0
A40: 1 | B40: 19 | C40: 15000 | D40: 15000 | E40: 0.6699 | F40: =ROUND(C40+((D40-C40)*E40),0) -> 15000 | G40: =Y40&" tons into sublot "&(W40+1) -> 0 tons into sublot 21 | Q40: don't extend the above two cols. | S40: 0.3176 | T40: =E40 -> 0.6699 | U40: =F40 -> 15000 | V40: 20 | W40: 20 | X40: =V40-W40 -> 0 | Y40: 0
A41: 1 | B41: 20 | C41: 15000 | D41: 15000 | E41: 0.2843 | F41: 15000 | G41: 0 tons into sublot 21 | S41: 0.323 | T41: 0.2843 | U41: 15000 | V41: 20 | W41: 20 | X41: 0 | Y41: 0
A43: NOTES:
A63: For necessary changes, send email to: HQ.Construction.Engineering@dot.ca.gov | K63: © Copyright 2020 California Department of Transportation
